bitfinex/quotes_ETHUSD_20250725
["timestamp","ask_amount","ask_price","bid_price","bid_amount"]
[1753429969849,2.7691626,3611.2,3610.1,0.3325]
[1753429970043,11.4758626,3611.2,3610.1,0.3325]
[1753429970245,8.0007626,3611.2,3610.1,0.04]
[1753429970543,8.8669,3611.2,3610.1,0.04]
[1753429970840,9.043649,3611.2,3610.1,0.04]
[1753429971027,13.444649,3611.2,3610.1,2.809988]
[1753429971229,0.55,3611.0,3610.1,0.04]
[1753429971431,2.76986247,3610.3,3610.1,0.04]
[1753429971646,3.55,3610.2,3610.1,0.04]
[1753429971954,7.27445376,3610.2,3610.1,0.04]
[1753429972241,5.2897,3610.2,3610.1,0.04]
[1753429972467,8.09425376,3610.2,3610.1,0.04]
[1753429972640,9.6937,3610.2,3610.1,0.04]
[1753429972872,12.46362964,3610.2,3610.1,0.04]
[1753429973261,12.46362964,3610.2,3608.8,0.2925]
[1753429973262,8.05962964,3610.2,3608.8,0.2925]
[1753429973446,3.0,3609.9,3606.9,3.27141621]
[1753429973783,0.58462795,3609.8,3608.3,2.77138818]
[1753429973999,0.03062507,3610.1,3610.0,2.7700831]
[1753429974168,0.8246,3611.2,3610.6,2.76962277]
[1753429974368,0.7779,3612.2,3610.7,0.4606]
[1753429974575,0.7779,3612.6,3610.7,0.599]
[1753429974769,0.7779,3612.6,3610.8,0.3196]
[1753429974970,0.7779,3612.6,3610.8,4.7356]
[1753429974971,0.1384,3611.7,3610.8,4.7356]
[1753429975183,1.2098,3612.6,3611.8,0.1384]
[1753429975383,0.1384,3612.4,3611.6,0.1384]
[1753429975695,0.1384,3612.4,3611.7,0.7802]
[1753429976007,0.04,3612.9,3612.4,2.76824122]
[1753429976187,0.04,3612.9,3612.7,2.76799864]
[1753429976385,0.04,3612.9,3612.8,2.90633622]
[1753429976556,0.04,3612.9,3612.8,0.1384]
[1753429976754,0.04,3612.9,3612.8,3.36693622]
[1753429977104,0.04,3612.9,3612.8,3.68653622]
[1753429977299,0.04,3612.9,3612.8,0.1384]
[1753429977595,0.59,3612.9,3612.8,0.1384]
[1753429977798,0.04,3612.9,3612.8,0.599]
[1753429977953,0.04,3612.9,3612.8,0.1384]
[1753429978159,0.04,3612.9,3612.8,3.36693622]
[1753429978425,0.04,3612.9,3612.8,3.599]
[1753429978613,0.04,3612.9,3612.8,0.599]
[1753429978791,0.04,3612.9,3612.8,3.36693622]
[1753429979175,0.04,3612.9,3612.8,3.68653622]
[1753429979372,0.04,3612.9,3612.8,6.68653622]
[1753429979573,0.04,3612.9,3612.8,3.68653622]
[1753429980217,0.04,3612.9,3612.8,0.599]
[1753429980359,0.04,3612.9,3611.7,0.4606]
[1753429980360,0.55,3612.8,3611.7,0.4606]
[1753429980564,1.5099,3612.9,3611.4,2.76900847]
[1753429980565,0.55,3612.4,3611.4,0.4606]
[1753429980803,0.03460399,3612.3,3611.4,0.4606]
[1753429981101,0.55,3612.2,3611.4,0.4606]
[1753429981259,0.55,3612.0,3611.4,0.4606]
[1753429981473,0.03460782,3611.9,3611.1,0.4616]
[1753429981680,0.816,3611.7,3611.1,0.001]
[1753429982101,0.85060974,3611.7,3611.1,0.001]
[1753429982297,0.816,3611.7,3611.1,0.001]
[1753429982500,0.816,3611.7,3611.2,2.76913782]
[1753429982693,0.816,3611.7,3611.1,2.77022439]
[1753429982885,0.55,3611.6,3611.1,0.001]
[1753429983087,1.07261069,3611.6,3611.1,0.001]
[1753429983288,0.4319,3611.5,3611.1,0.001]
[1753429983491,0.55,3611.3,3611.1,0.001]
[1753429983713,0.816,3611.7,3611.2,0.4606]
[1753429983917,0.816,3611.7,3611.3,0.4606]
[1753429984088,3.20080272,3611.6,3611.1,0.001]
[1753429984290,3.3191626,3611.2,3611.1,0.001]
[1753429984681,8.09857713,3611.2,3611.1,1e-08]
[1753429984884,7.1446762,3610.4,3610.3,0.001]
[1753429985116,6.5946762,3610.4,3610.3,0.001]
[1753429985320,8.0645762,3610.4,3610.3,0.001]
[1753429985824,2.76992964,3610.2,3609.6,0.001]
[1753429985992,6.35455376,3610.2,3609.6,0.001]
[1753429986195,6.75182964,3610.2,3609.6,0.001]
[1753429986395,7.23982964,3610.2,3609.6,0.001]
[1753429986596,2.77031332,3609.7,3609.6,1e-08]
[1753429986816,2.7706971,3609.2,3609.1,0.04]
[1753429986988,0.55,3608.0,3606.3,0.04]
[1753429987320,0.7956,3608.1,3606.3,0.04]
[1753429987321,2.77223331,3607.2,3606.3,0.04]
[1753429987524,4.47713331,3607.2,3605.6,0.04]
[1753429987756,7.51178622,3607.2,3606.0,0.4606]
[1753429987892,7.51178622,3607.2,3606.2,0.4606]
[1753429987893,1.7049,3607.2,3606.2,0.4606]
[1753429988088,4.51178622,3607.2,3605.5,0.21251721]
[1753429988425,7.51178622,3607.2,3605.8,0.4606]
[1753429988627,7.47713331,3607.2,3605.8,0.4606]
[1753429988797,7.47713331,3607.2,3605.3,0.04]
[1753429988798,5.77238702,3607.0,3606.9,1e-08]
[1753429989014,7.87038702,3607.0,3606.9,1e-08]
[1753429989220,11.24028702,3607.0,3606.9,1e-08]
[1753429989409,11.24828702,3607.0,3606.9,1e-08]
[1753429989943,5.77300205,3606.2,3605.1,0.04]
[1753429990114,1.7284,3606.9,3605.5,0.4606]
[1753429990315,0.1384,3606.3,3605.9,0.4606]
[1753429990648,0.488,3606.8,3605.5,0.4606]
[1753429990649,3.0,3606.7,3605.5,0.4606]
[1753429990816,0.1384,3606.3,3605.8,0.1384]
[1753429991144,0.4319,3606.2,3606.0,0.1384]
[1753429991330,0.4319,3606.2,3605.1,2.81383189]
[1753429991331,6.26081726,3606.5,3605.5,0.4606]
[1753429991531,0.9199,3606.4,3605.3,0.4606]
[1753429991701,3.58050205,3606.2,3605.1,0.04]
[1753429992107,4.50040205,3606.2,3605.1,0.5006]
[1753429992304,1.7274,3606.2,3605.1,0.04]
[1753429992649,4.76206252,3606.2,3605.3,2.77363012]
[1753429992825,0.8075,3606.2,3605.4,0.4606]
[1753429993007,0.8075,3606.8,3606.1,0.5006]
[1753429993245,0.488,3607.1,3606.2,2.77300205]
[1753429993548,0.8075,3607.3,3606.3,0.4606]
[1753429994024,4.573,3607.7,3607.5,2.77199585]
[1753429994222,0.488,3608.4,3607.6,0.4606]
[1753429994548,5.3326,3608.8,3607.7,2.7718491]
[1753429994549,0.7596,3608.8,3607.7,2.7718491]
[1753429994855,0.03463467,3609.1,3607.9,2.77169544]
[1753429995006,4.575,3609.1,3608.3,2.77137234]
[1753429995207,0.04,3609.9,3608.8,2.77100421]
[1753429995813,0.488,3609.4,3608.4,0.04]
[1753429996005,0.488,3609.4,3607.8,0.3596]
[1753429996006,0.488,3609.2,3608.5,0.4606]
[1753429996246,0.03463755,3608.8,3608.0,0.4606]
[1753429996453,4.574,3609.6,3608.6,0.4606]
[1753429996632,0.04,3609.9,3608.8,3.36100421]
[1753429996832,0.04,3609.9,3609.8,2.77023657]
[1753429997149,0.04,3609.9,3609.8,3.32023657]
[1753429997310,0.04,3609.9,3609.8,3.26033657]
[1753429997508,0.04,3609.9,3609.8,4.16993657]
[1753429997850,0.04,3610.9,3610.8,2.76946936]
[1753429998256,0.04,3610.9,3610.8,3.31946936]
[1753429998427,0.04,3610.9,3610.8,0.4901]
[1753429998751,0.04,3610.9,3610.2,0.4901]
[1753429998908,0.04,3610.9,3610.0,0.4901]
[1753429999110,0.04,3610.9,3610.1,2.77000535]
[1753429999310,0.04,3610.9,3609.8,2.81023175]
[1753429999311,0.5171,3610.9,3609.8,0.04]
[1753429999610,0.5171,3610.9,3608.0,2.77156898]
[1753429999611,2.77009389,3610.0,3609.0,0.04]
[1753429999837,1.33592699,3609.9,3608.4,0.04]
[1753430000039,6.40012699,3609.9,3608.2,0.004]
[1753430000313,0.9473,3609.8,3608.3,0.4901]
[1753430000534,2.77047083,3609.5,3608.5,2.77117928]
[1753430000845,2.77070953,3609.2,3608.3,3.26147711]
[1753430001034,3.75253953,3609.4,3608.5,2.77116334]
[1753430001345,3.75253953,3609.4,3608.7,0.1384]
[1753430001346,2.77096111,3608.9,3608.7,0.1384]
[1753430001530,2.90910824,3609.2,3608.7,0.1384]
[1753430001731,3.0,3609.6,3608.2,0.004]
[1753430001732,0.4771,3608.9,3608.2,0.004]
[1753430001938,2.77138818,3608.3,3608.2,0.004]
[1753430002246,7.40903053,3608.3,3608.2,0.004]
[1753430002574,0.6155,3608.3,3608.2,0.004]
[1753430002728,2.77138818,3608.3,3608.2,0.004]
[1753430002929,6.75333053,3608.3,3608.2,0.004]
[1753430003130,11.33568818,3608.3,3608.2,0.004]
[1753430003639,11.33468818,3608.3,3608.2,0.004]
[1753430004638,6.71868818,3608.3,3608.2,0.004]
[1753430004981,11.33168818,3608.3,3608.2,0.004]
[1753430005338,3.54268818,3608.3,3608.2,0.004]
[1753430005646,2.77223331,3607.2,3607.1,0.04]
[1753430006064,3.75418622,3607.2,3607.1,0.04]
[1753430006254,4.52548622,3607.2,3607.1,0.04]
[1753430006453,4.49083331,3607.2,3607.1,0.04]
[1753430006652,7.52548622,3607.2,3607.1,0.04]
[1753430006864,7.49083331,3607.2,3607.1,0.04]
[1753430007248,12.11283331,3607.2,3607.1,0.04]
[1753430007676,7.49083331,3607.2,3607.1,0.04]
[1753430007901,8.16553331,3607.2,3607.1,0.04]
[1753430008180,9.11283331,3607.2,3607.1,0.04]
[1753430008384,12.11283331,3607.2,3607.1,0.04]
[1753430008782,7.49083331,3607.2,3607.1,0.04]
[1753430009886,12.10783331,3607.2,3607.1,0.04]
[1753430010383,12.10783331,3607.2,3607.1,1e-08]
[1753430010679,2.77300205,3606.2,3606.1,0.041]
[1753430010882,7.42666457,3606.2,3606.1,0.041]
[1753430011087,8.33930205,3606.2,3606.1,0.041]
[1753430012247,8.5663,3606.2,3605.1,0.04]
[1753430012455,2.91192224,3605.6,3605.1,0.1784]
[1753430012644,4.619,3605.5,3605.2,0.4901]
[1753430012886,4.62,3605.5,3605.1,0.04]
[1753430013093,7.39360174,3605.5,3605.2,0.6285]
[1753430013298,4.62,3605.5,3605.3,0.4901]
[1753430013479,4.62,3605.5,3605.4,0.1384]
[1753430013669,4.624,3605.9,3605.4,0.9881]
[1753430013868,0.1384,3606.2,3605.5,0.4901]
[1753430013869,7.43197946,3605.8,3605.5,0.4901]
[1753430014101,7.39730966,3605.8,3605.7,0.1384]
[1753430014406,4.621,3605.8,3605.7,0.4901]
[1753430014754,4.621,3605.8,3605.6,0.1384]
[1753430014951,0.1384,3606.1,3605.6,0.6285]
[1753430015151,4.622,3606.0,3605.6,0.1384]
[1753430015457,0.1384,3606.2,3605.7,0.4901]
[1753430015680,4.62,3606.1,3605.9,0.1384]
[1753430015898,0.6086,3606.4,3605.9,0.1384]
[1753430016097,5.0892,3606.3,3605.9,0.1384]
[1753430016278,1.20223584,3606.2,3605.2,0.4901]
[1753430016480,0.03466348,3606.1,3605.4,0.1384]
[1753430016712,2.77330966,3605.8,3605.4,0.1384]
[1753430016872,4.621,3605.7,3605.5,0.4901]
[1753430017071,4.621,3605.7,3605.6,0.1384]
[1753430017414,7.39438658,3605.7,3605.6,0.1384]
[1753430017595,4.619,3605.7,3605.6,0.1384]
[1753430017984,4.619,3605.7,3605.1,0.5301]
[1753430018184,0.1384,3605.9,3605.4,0.1384]
[1753430018385,2.77318048,3606.0,3605.6,0.1384]
[1753430018689,0.8088,3605.9,3605.6,0.1384]
[1753430018888,0.1384,3605.7,3605.1,0.04]
[1753430019105,0.03466637,3605.8,3605.1,0.04]
[1753430019106,2.77368124,3605.4,3605.1,0.04]
[1753430019285,2.77362736,3605.4,3605.1,0.04]
[1753430019486,0.1384,3605.5,3605.1,0.04]
[1753430019793,2.77361735,3605.4,3605.1,0.04]
[1753430019971,4.7664,3605.5,3605.1,0.04]
[1753430020172,8.01709976,3605.5,3605.1,0.04]
[1753430020380,4.628,3605.5,3605.1,0.5301]
[1753430020615,3.72091735,3605.4,3605.1,0.04]
[1753430020914,4.628,3605.5,3605.2,0.4901]
[1753430021075,3.8088,3605.9,3605.1,0.04]
[1753430021076,0.8088,3605.9,3605.3,0.4901]
[1753430021387,0.1384,3605.4,3605.1,0.04]
[1753430021584,4.649,3605.6,3605.2,0.4901]
[1753430021788,0.03466925,3605.5,3605.3,0.4901]
[1753430021988,0.1384,3606.1,3605.1,0.04]
[1753430021989,0.7837,3606.3,3605.5,0.1384]
[1753430022186,2.77307894,3606.1,3605.1,0.04]
[1753430022390,2.77354042,3605.5,3605.1,0.04]
[1753430022709,0.1384,3605.6,3605.1,0.04]
[1753430022710,2.77369837,3605.3,3605.1,0.04]
[1753430023007,0.03467214,3605.2,3605.1,0.04]
[1753430023414,2.80844335,3605.2,3605.1,0.04]
[1753430023708,0.6155,3605.2,3605.1,0.04]
[1753430023915,0.17307214,3605.2,3605.1,0.04]
[1753430024112,2.77377121,3605.2,3605.1,0.04]
[1753430024475,4.7924,3605.3,3605.1,0.04]
[1753430024696,4.654,3605.3,3605.1,0.5301]
[1753430025009,4.654,3605.3,3605.2,0.6285]
[1753430025475,4.653,3605.6,3605.3,2.77363599]
[1753430025679,6.24335141,3606.1,3605.4,0.4901]
[1753430025680,4.653,3605.7,3605.4,0.4901]
[1753430025875,4.653,3605.7,3605.5,0.1384]
[1753430026083,4.653,3605.7,3605.5,0.6285]
[1753430026285,4.7914,3605.7,3605.2,0.1384]
[1753430026512,0.98196829,3605.6,3605.2,0.1384]
[1753430026672,4.7914,3605.7,3605.3,0.4901]
[1753430026875,4.7914,3605.7,3605.4,0.472]
[1753430027077,4.7914,3605.9,3605.5,0.472]
[1753430027276,4.653,3605.9,3605.6,0.472]
[1753430027484,0.03466637,3605.8,3605.6,0.472]
[1753430027688,4.653,3605.9,3605.6,0.472]
[1753430027924,4.653,3605.9,3605.6,0.6104]
[1753430028316,0.03466444,3606.0,3605.6,0.1384]
[1753430028615,7.42317313,3606.0,3605.7,0.472]
[1753430028819,7.42317313,3606.0,3605.1,2.8138475]
[1753430028820,3.73609815,3605.9,3605.1,0.04]
[1753430029116,2.77377121,3605.2,3605.1,0.04]
[1753430029318,7.59284335,3605.2,3605.1,0.04]
[1753430029522,8.48637121,3605.2,3605.1,0.04]
[1753430029719,5.7126,3605.2,3605.1,0.04]
[1753430029885,0.1384,3605.5,3605.1,0.512]
[1753430030089,7.41963941,3605.4,3605.1,0.04]
[1753430030321,4.646,3605.4,3605.1,0.04]
[1753430030523,4.646,3605.4,3605.1,0.512]
[1753430030822,4.646,3605.4,3605.2,0.472]
[1753430031019,4.646,3605.4,3605.3,0.472]
[1753430031200,4.646,3605.4,3605.3,0.6104]
[1753430031397,4.646,3605.4,3605.1,0.04]
[1753430031597,0.472,3606.4,3605.2,0.6504]
[1753430031793,2.7734631,3605.7,3605.1,0.04]
[1753430031997,3.57279878,3605.5,3605.1,0.04]
[1753430032296,2.77367978,3605.4,3605.1,0.04]
[1753430032499,2.77377121,3605.2,3605.1,0.04]
[1753430032699,4.669,3605.2,3605.1,0.04]
[1753430033114,0.8116,3605.9,3605.1,0.512]
[1753430033324,2.77355088,3605.5,3605.1,0.512]
[1753430033700,2.77348788,3605.6,3605.1,0.512]
[1753430033899,2.77340861,3605.7,3605.1,0.512]
[1753430034104,4.666,3605.8,3605.2,0.472]
[1753430034535,2.77345264,3605.7,3605.2,0.472]
[1753430034829,7.43933241,3605.8,3605.2,0.472]
[1753430035005,4.666,3605.8,3605.2,0.472]
[1753430035194,7.43933068,3605.8,3605.1,0.04]
[1753430035394,2.77354149,3605.5,3605.1,0.04]
[1753430035627,4.658,3605.4,3605.1,0.04]
[1753430035805,7.43167583,3605.4,3605.1,0.04]
[1753430036191,4.658,3605.4,3605.1,0.04]
[1753430036933,2.77376301,3605.3,3605.1,0.04]
[1753430037098,7.43163368,3605.4,3605.1,0.04]
[1753430037291,5.658,3605.4,3605.1,0.512]
[1753430037491,5.658,3605.4,3605.2,0.472]
[1753430037688,8.43162043,3605.4,3605.2,0.472]
[1753430037889,5.65,3605.4,3605.1,0.04]
[1753430038092,8.42367776,3605.4,3605.1,0.04]
[1753430038330,8.42363744,3605.4,3605.1,0.04]
[1753430038502,2.77371058,3605.3,3605.1,0.04]
[1753430038704,5.65,3605.4,3605.1,0.04]
[1753430039023,5.65,3605.4,3605.1,0.512]
[1753430039252,8.42361883,3605.4,3605.1,0.512]
[1753430039602,5.65,3605.4,3605.1,0.512]
[1753430039924,2.77375679,3605.3,3605.1,0.04]
[1753430040124,8.42363599,3605.4,3605.1,0.04]
[1753430040293,5.65,3605.4,3605.1,0.04]
[1753430040495,5.65,3605.4,3605.1,0.512]
[1753430040691,2.77370131,3605.3,3605.1,0.512]
[1753430041028,8.42364285,3605.4,3605.1,0.04]
[1753430041231,1.0,3605.4,3605.1,0.04]
[1753430041396,4.635,3605.3,3605.2,0.472]
[1753430041597,2.77377121,3605.2,3605.1,0.04]
[1753430041816,3.70197121,3605.2,3605.1,0.04]
[1753430042016,5.7739251,3605.0,3604.9,0.001]
[1753430042346,10.5463251,3605.0,3604.9,0.001]
[1753430042536,3.8405251,3605.0,3604.9,0.001]
[1753430042737,8.4775251,3605.0,3604.9,0.001]
[1753430042978,11.4775251,3605.0,3604.9,0.001]
[1753430043315,3.3843251,3605.0,3604.9,0.001]
[1753430043647,8.4795251,3605.0,3604.9,0.001]
[1753430044150,4.639,3605.0,3604.9,0.001]
[1753430044348,4.639,3605.0,3604.9,0.473]
[1753430044652,4.639,3605.3,3604.9,0.6114]
[1753430044854,0.03467214,3605.2,3605.1,0.1384]
[1753430045016,1.0,3605.4,3605.1,0.1384]
[1753430045017,1.0,3605.4,3605.1,0.6104]
[1753430045215,1.0,3605.4,3605.2,0.04]
[1753430045481,1.0,3605.4,3605.1,0.1384]
[1753430045954,2.7739251,3605.0,3604.9,0.001]
[1753430046158,7.45059916,3605.0,3604.9,0.001]
[1753430046369,8.4825251,3605.0,3604.9,0.001]
[1753430046575,11.4825251,3605.0,3604.9,0.001]
[1753430047558,11.4805251,3605.0,3604.9,0.001]
[1753430047742,3.8405251,3605.0,3604.9,0.001]
[1753430048047,8.51419916,3605.0,3604.9,0.001]
[1753430048263,8.4795251,3605.0,3604.9,0.001]
[1753430048818,4.7774,3605.0,3604.9,0.001]
[1753430049045,1.2819,3605.3,3604.9,0.001]
[1753430049259,4.66867214,3605.2,3604.9,0.001]
[1753430049441,2.77390807,3605.1,3604.9,0.001]
[1753430049644,2.80859916,3605.0,3604.9,0.001]
[1753430049866,0.03467406,3605.0,3604.9,0.001]
[1753430050159,4.5951251,3605.0,3604.9,0.001]
[1753430050519,4.1389251,3605.0,3604.9,0.001]
[1753430050971,9.2271251,3605.0,3604.9,0.001]
[1753430051451,4.7704,3605.0,3604.9,0.001]
[1753430051754,8.0163251,3605.0,3604.9,0.001]
[1753430051933,8.4725251,3605.0,3604.9,0.001]
[1753430052334,11.4725251,3605.0,3604.9,0.001]
[1753430052758,12.2244251,3605.0,3604.9,0.001]
[1753430053200,12.2244251,3605.0,3601.2,7.07684498]
[1753430053201,0.7519,3604.2,3603.1,0.04]
[1753430053350,0.7519,3604.2,3603.1,0.512]
[1753430053351,0.03468272,3604.1,3603.1,0.512]
[1753430053550,0.472,3604.3,3603.1,0.512]
[1753430053551,4.626,3604.0,3603.3,2.77522066]
[1753430053781,4.626,3604.0,3603.1,3.28737009]
[1753430053782,0.03468176,3604.2,3603.5,0.04]
[1753430053947,1.0,3605.4,3604.0,2.77469478]
[1753430054302,1.0,3605.4,3604.1,0.8316]
[1753430054473,1.0,3605.4,3605.2,2.77373395]
[1753430054699,1.0,3605.4,3605.1,0.04]
[1753430054700,8.40567432,3605.4,3605.1,0.04]
[1753430054862,1.0,3605.4,3605.1,0.04]
[1753430055080,5.633,3605.4,3604.9,0.472]
[1753430055275,2.7739615,3605.0,3604.4,0.472]
[1753430055488,7.40586642,3605.1,3604.4,0.472]
[1753430055695,2.773941,3605.0,3604.4,0.472]
[1753430055883,4.632,3605.1,3604.4,0.472]
[1753430056082,0.03467406,3605.0,3604.4,0.472]
[1753430056256,4.629,3605.1,3604.4,0.472]
[1753430056455,4.629,3605.1,3604.8,2.7740278]
[1753430056659,4.629,3605.1,3604.9,0.472]
[1753430056898,4.629,3605.1,3604.4,3.13397222]
[1753430056899,4.629,3605.1,3605.0,0.4679]
[1753430057271,4.629,3605.1,3604.7,0.4679]
[1753430057460,4.629,3605.1,3604.5,2.77424841]
[1753430057664,4.629,3605.1,3604.7,2.77415596]
[1753430057989,0.03467406,3605.0,3604.3,0.04]
[1753430058363,0.03467406,3605.0,3604.4,0.4679]
[1753430058898,1.0,3605.4,3604.4,0.4679]
[1753430059199,2.77385517,3605.1,3604.4,3.24227332]
[1753430059381,2.80852827,3605.1,3604.5,0.4679]
[1753430059596,2.80852827,3605.1,3604.3,0.04]
[1753430059597,0.0346731,3605.1,3604.3,0.04]
[1753430059760,2.77405649,3604.9,3604.3,0.04]
[1753430059963,2.77415596,3604.7,3604.3,0.04]
[1753430060198,4.65467791,3604.6,3603.3,0.04]
[1753430060400,2.77483173,3603.9,3603.4,0.4679]
[1753430060620,2.77527663,3603.3,3603.0,0.4679]
[1753430060780,7.43800221,3603.2,3602.9,0.2903146]
[1753430060982,8.29011083,3603.2,3602.9,0.2903146]
[1753430061894,4.628,3603.2,3602.9,0.2903146]
[1753430062095,7.40331083,3603.2,3602.9,0.2903146]
[1753430062287,9.10901083,3603.2,3602.9,0.2903146]
[1753430062482,0.8189,3603.6,3602.9,0.2903146]
[1753430062684,2.77479105,3603.9,3603.1,0.5079]
[1753430062921,2.77492577,3603.7,3603.1,0.04]
[1753430063217,5.5824856,3603.8,3603.1,0.04]
[1753430063218,0.03468753,3603.6,3603.1,0.04]
[1753430063377,0.1384,3603.5,3603.1,0.04]
[1753430063581,0.8189,3604.0,3603.2,0.4679]
[1753430063782,3.66132966,3604.3,3603.1,0.04]
[1753430063783,0.8153,3603.8,3603.1,0.04]
[1753430064028,2.91371083,3603.2,3603.1,0.04]
[1753430064281,0.1384,3603.2,3603.1,0.04]
[1753430064481,4.67,3603.2,3603.1,0.04]
[1753430064730,4.674,3603.2,3603.1,0.04]
[1753430064885,5.1068,3603.2,3603.1,0.04]
[1753430065236,8.47451083,3603.2,3603.1,0.04]
[1753430066284,8.33611083,3603.2,3603.1,0.04]
[1753430066623,5.5608,3603.2,3603.1,0.04]
[1753430066832,8.33611083,3603.2,3603.1,0.04]
[1753430067425,2.77552008,3603.0,3602.5,0.004]
[1753430067624,8.33614642,3603.2,3602.5,0.004]
[1753430067811,7.44934642,3603.2,3602.5,0.004]
[1753430068032,5.128,3603.2,3602.5,0.004]
[1753430068229,2.7755939,3602.9,3602.5,0.004]
[1753430068433,4.666,3602.8,3602.5,0.004]
[1753430069133,4.666,3602.8,3602.5,0.4719]
[1753430069443,4.666,3602.8,3602.5,0.004]
[1753430069644,2.77531143,3603.2,3602.6,0.4679]
[1753430069845,2.77531143,3603.2,3602.5,0.004]
[1753430069846,2.77546489,3603.0,3602.5,0.004]
[1753430070044,2.77570917,3602.7,3602.5,0.004]
[1753430070246,4.69669716,3602.6,3602.5,0.004]
[1753430071011,4.662,3602.6,3602.5,0.004]
[1753430071211,4.662,3602.6,3602.5,0.4719]
[1753430071639,2.77538096,3603.2,3602.5,3.24773448]
[1753430071850,4.662,3603.1,3602.5,0.4719]
[1753430072147,2.77546791,3603.0,3602.5,0.4719]
[1753430072334,3.0,3603.6,3602.6,0.04]
[1753430072507,2.7753547,3603.2,3602.6,0.04]
[1753430072725,0.4328,3603.5,3602.6,0.5079]
[1753430072919,4.653,3603.4,3602.6,0.5079]
[1753430073131,4.653,3603.3,3602.6,0.5079]
[1753430073330,2.77551688,3603.0,3602.6,0.5079]
[1753430073527,7.46329701,3602.9,3602.6,0.04]
[1753430073856,4.653,3602.8,3602.6,0.04]
[1753430074030,4.653,3602.8,3602.7,0.4679]
[1753430074725,0.454,3603.7,3602.7,0.4679]
[1753430074726,4.03089745,3603.9,3603.1,2.77532078]
[1753430074966,4.648,3603.8,3602.7,0.3596]
[1753430075257,2.77514609,3603.5,3602.9,0.4679]
[1753430075454,7.4578482,3603.4,3602.9,0.4679]
[1753430075658,7.42324465,3603.3,3603.0,0.4679]
[1753430075855,7.42324465,3603.3,3602.6,0.5079]
[1753430075856,2.77547065,3603.0,3602.6,0.5079]
[1753430076357,2.77547065,3603.0,3602.6,0.04]
[1753430076555,4.646,3602.9,3602.7,0.6063]
[1753430076770,4.644,3602.8,3602.7,0.6063]
[1753430076932,4.644,3602.8,3602.7,0.1384]
[1753430076933,7.41961896,3602.8,3602.7,0.1384]
[1753430077342,4.644,3602.8,3602.7,0.1384]
[1753430078136,1.0,3603.0,3602.9,2.77554192]
[1753430078339,1.0,3603.0,3602.9,3.78144192]
[1753430079233,1.0,3603.0,3602.9,0.1784]
[1753430079645,1.0,3603.0,3602.9,0.6463]
[1753430079846,1.0,3603.0,3602.9,0.1384]
[1753430080049,3.77546489,3603.0,3602.9,0.1384]
[1753430080279,3.8101582,3603.0,3602.9,0.1384]
[1753430080480,2.77558358,3602.9,3602.5,0.044]
[1753430080646,2.77577305,3602.6,3602.5,0.004]
[1753430080854,1.4328,3603.0,3602.5,0.004]
[1753430080855,2.77561896,3602.8,3602.7,0.1384]
[1753430081160,2.77577305,3602.6,3602.5,0.1424]
[1753430081360,2.77577305,3602.6,3602.5,0.004]
[1753430082436,1.0,3603.0,3602.5,0.4719]
[1753430082659,4.633,3602.9,3602.6,0.4679]
[1753430082871,7.40860275,3602.9,3602.7,0.6063]
[1753430083042,7.40860275,3602.9,3602.8,0.4679]
[1753430083043,4.633,3602.9,3602.8,0.4679]
[1753430083518,1.0,3603.0,3602.8,0.4679]
[1753430083700,1.0,3603.0,3602.8,0.5079]
[1753430084003,1.0,3603.0,3602.9,2.91394192]
[1753430084203,1.0,3603.0,3602.9,3.74144192]
[1753430084782,1.0,3603.0,3602.9,4.29144192]
[1753430084964,1.0,3603.0,3602.9,4.33144192]
[1753430085310,1.0,3603.0,3602.9,0.1784]
[1753430085491,1.0,3603.0,3602.9,0.1384]
[1753430086414,1.0,3603.0,3602.9,3.38184192]
[1753430086597,1.0,3603.0,3602.9,3.78144192]
[1753430086906,1.0,3603.0,3602.9,4.33144192]
[1753430087115,4.625,3604.4,3603.5,2.77507978]
[1753430087415,4.625,3604.4,3603.7,2.77492577]
[1753430087567,0.04,3604.9,3604.3,2.77440874]
[1753430087776,4.623,3604.7,3604.4,0.1384]
[1753430087970,0.1784,3604.9,3604.5,0.4753]
[1753430088221,0.04,3604.9,3604.7,2.77408769]
[1753430088416,0.04,3604.9,3604.8,0.1384]
[1753430088584,0.04,3604.9,3604.8,3.387779]
[1753430088781,0.04,3604.9,3604.8,0.6137]
[1753430089014,0.04,3604.9,3604.8,3.387779]
[1753430089309,0.04,3604.9,3604.8,3.427779]
[1753430089697,0.04,3604.9,3604.8,0.6537]
[1753430090009,0.04,3604.9,3603.9,0.55]
[1753430090010,0.9814,3604.9,3604.2,0.04]
[1753430090343,0.9814,3604.9,3604.5,0.1384]
[1753430090344,2.77423292,3604.6,3604.5,0.1384]
[1753430090476,2.77417653,3604.7,3604.5,0.1384]
[1753430090676,0.03467791,3604.6,3604.5,0.1384]
[1753430090879,2.80891083,3604.6,3604.5,0.1384]
[1753430091289,2.77458407,3604.2,3603.8,0.04]
[1753430091619,2.77439691,3604.4,3604.1,0.1384]
[1753430091812,0.1384,3604.6,3604.1,0.1384]
[1753430092014,2.77423292,3604.6,3604.2,0.4753]